[Event "*** SCC Grand Prix: Titled Tuesday Blitz"]
[Site "Chess.com"]
[Date "2020.07.07"]
[Round "3"]
[White "Synctel"]
[Black "CyberdelChess"]
[Result "0-1"]
[WhiteElo "1915"]
[BlackElo "2256"]
[TimeControl "180+1"]
[EndTime "10:28:14 PDT"]
[Termination "CyberdelChess won on time"]

1. d4 {[%clk 0:03:00.9]} 1... d5 {[%clk 0:02:59.5]} 2. Nf3 {[%clk 0:03:00.3]}
2... Nf6 {[%clk 0:02:57.2]} 3. Bf4 {[%clk 0:02:55.5]} 3... c5 {[%clk 0:02:56.7]}
4. c3 {[%clk 0:02:50]} 4... Nc6 {[%clk 0:02:57.1]} 5. Nbd2 {[%clk 0:02:44.3]}
5... cxd4 {[%clk 0:02:54.3]} 6. cxd4 {[%clk 0:02:43.4]} 6... Qb6 {[%clk
0:02:54.3]} 7. Nb3 {[%clk 0:02:29.3]} 7... Bf5 {[%clk 0:02:43]} 8. e3 {[%clk
0:01:43.6]} 8... e6 {[%clk 0:02:41.5]} 9. Bd3 {[%clk 0:01:31.6]} 9... Bb4+
{[%clk 0:02:40.8]} 10. Ke2 {[%clk 0:01:31.6]} 10... Bg4 {[%clk 0:02:26.7]} 11.
h3 {[%clk 0:01:22.6]} 11... Bh5 {[%clk 0:02:26.4]} 12. g4 {[%clk 0:01:20]} 12...
Bg6 {[%clk 0:02:26.4]} 13. Kf1 {[%clk 0:01:11.3]} 13... Be7 {[%clk 0:02:14]} 14.
Ne5 {[%clk 0:00:51.2]} 14... Nxe5 {[%clk 0:02:03.9]} 15. Bxe5 {[%clk 0:00:48.5]}
15... Rc8 {[%clk 0:01:49.7]} 16. Kg2 {[%clk 0:00:44.1]} 16... O-O {[%clk
0:01:47.6]} 17. Qe2 {[%clk 0:00:36.9]} 17... Ne4 {[%clk 0:01:46.8]} 18. Rac1
{[%clk 0:00:35.9]} 18... Bh4 {[%clk 0:01:41.1]} 19. Bxe4 {[%clk 0:00:28.8]}
19... Bxe4+ {[%clk 0:01:33.4]} 20. f3 {[%clk 0:00:29]} 20... Bg6 {[%clk
0:01:33.4]} 21. Nc5 {[%clk 0:00:27]} 21... Rfd8 {[%clk 0:01:17]} 22. Nd7 {[%clk
0:00:24.5]} 22... Qa5 {[%clk 0:01:06.3]} 23. Nc5 {[%clk 0:00:13.5]} 23... Qxa2
{[%clk 0:00:57.1]} 24. Nxb7 {[%clk 0:00:07.8]} 24... Rf8 {[%clk 0:00:43.3]} 25.
Nd6 {[%clk 0:00:06]} 25... Rb8 {[%clk 0:00:40.3]} 0-1

[Event "*** SCC Grand Prix: Titled Tuesday Blitz"]
[Site "Chess.com"]
[Date "2020.07.07"]
[Round "3"]
[White "kimstevenyap"]
[Black "BabyBoss31"]
[Result "1-0"]
[WhiteElo "2490"]
[BlackElo "2213"]
[TimeControl "180+1"]
[EndTime "10:28:16 PDT"]
[Termination "kimstevenyap won by resignation"]

1. e4 {[%clk 0:03:00.9]} 1... e6 {[%clk 0:03:00.1]} 2. d4 {[%clk 0:03:00.5]}
2... d5 {[%clk 0:03:01]} 3. e5 {[%clk 0:03:01]} 3... c5 {[%clk 0:03:00.8]} 4. c3
{[%clk 0:03:01.9]} 4... Qb6 {[%clk 0:02:59.3]} 5. a3 {[%clk 0:03:01.6]} 5... Nc6
{[%clk 0:02:54.3]} 6. Nf3 {[%clk 0:03:01]} 6... c4 {[%clk 0:02:29.8]} 7. Nbd2
{[%clk 0:02:59.8]} 7... Bd7 {[%clk 0:02:24.6]} 8. b4 {[%clk 0:02:54.2]} 8... a5
{[%clk 0:02:16.4]} 9. Bb2 {[%clk 0:02:41.5]} 9... f6 {[%clk 0:01:56.2]} 10. Be2
{[%clk 0:02:23.8]} 10... fxe5 {[%clk 0:01:52.5]} 11. Nxe5 {[%clk 0:02:16.4]}
11... Nxe5 {[%clk 0:01:50.9]} 12. dxe5 {[%clk 0:02:17.3]} 12... Nh6 {[%clk
0:01:47.5]} 13. O-O {[%clk 0:02:10.2]} 13... g6 {[%clk 0:01:31.8]} 14. Rb1
{[%clk 0:01:53.8]} 14... Bg7 {[%clk 0:01:17]} 15. Bxc4 {[%clk 0:01:45.2]} 15...
dxc4 {[%clk 0:00:48.9]} 16. Nxc4 {[%clk 0:01:46.1]} 16... Qc7 {[%clk 0:00:46.3]}
17. Nd6+ {[%clk 0:01:46]} 17... Ke7 {[%clk 0:00:43.6]} 18. c4 {[%clk 0:01:45.9]}
18... Nf7 {[%clk 0:00:28.4]} 19. Re1 {[%clk 0:01:45.4]} 19... Nxe5 {[%clk
0:00:23.1]} 20. c5 {[%clk 0:01:11.3]} 20... Qc6 {[%clk 0:00:02.1]} 21. Rxe5
{[%clk 0:01:00.7]} 21... Bxe5 {[%clk 0:00:03]} 22. Bxe5 {[%clk 0:01:00.3]} 22...
Rhg8 {[%clk 0:00:03.7]} 23. Qd4 {[%clk 0:00:58.4]} 23... Raf8 {[%clk 0:00:04.2]}
24. Qh4+ {[%clk 0:00:57.2]} 24... g5 {[%clk 0:00:02.7]} 25. Qxh7+ {[%clk
0:00:54.8]} 25... Kd8 {[%clk 0:00:03.6]} 26. Rd1 {[%clk 0:00:47.8]} 26... axb4
{[%clk 0:00:03.6]} 27. axb4 {[%clk 0:00:47.4]} 27... b6 {[%clk 0:00:02.7]} 28.
b5 {[%clk 0:00:46.5]} 28... Qxc5 {[%clk 0:00:02.4]} 29. Nb7+ {[%clk 0:00:46]}
1-0

[Event "*** SCC Grand Prix: Titled Tuesday Blitz"]
[Site "Chess.com"]
[Date "2020.07.07"]
[Round "3"]
[White "grandcoach"]
[Black "IMKarimIsmael"]
[Result "0-1"]
[WhiteElo "2103"]
[BlackElo "2406"]
[TimeControl "180+1"]
[EndTime "10:28:16 PDT"]
[Termination "IMKarimIsmael won on time"]

1. e4 {[%clk 0:02:57.4]} 1... e5 {[%clk 0:02:59.4]} 2. Nf3 {[%clk 0:02:56.4]}
2... Nf6 {[%clk 0:02:59.4]} 3. Nxe5 {[%clk 0:02:53.3]} 3... Nxe4 {[%clk
0:02:59.2]} 4. Qe2 {[%clk 0:02:50.5]} 4... Qe7 {[%clk 0:02:59.5]} 5. Qxe4 {[%clk
0:02:48.5]} 5... d6 {[%clk 0:03:00.1]} 6. d4 {[%clk 0:02:35]} 6... dxe5 {[%clk
0:03:00.5]} 7. Qxe5 {[%clk 0:02:33.8]} 7... Qxe5+ {[%clk 0:02:59.4]} 8. dxe5
{[%clk 0:02:33.3]} 8... Nc6 {[%clk 0:03:00]} 9. Bb5 {[%clk 0:02:31.9]} 9... Bd7
{[%clk 0:03:00.3]} 10. Bxc6 {[%clk 0:02:24.4]} 10... Bxc6 {[%clk 0:02:59.3]} 11.
f3 {[%clk 0:02:10.3]} 11... O-O-O {[%clk 0:02:53.9]} 12. Kf2 {[%clk 0:02:01.9]}
12... Bc5+ {[%clk 0:02:43]} 13. Be3 {[%clk 0:02:01.9]} 13... Bxe3+ {[%clk
0:02:41.8]} 14. Kxe3 {[%clk 0:02:02.8]} 14... Rhe8 {[%clk 0:02:41.7]} 15. f4
{[%clk 0:01:39.5]} 15... f6 {[%clk 0:02:40.8]} 16. Nc3 {[%clk 0:01:37.3]} 16...
fxe5 {[%clk 0:02:40.3]} 17. f5 {[%clk 0:01:37.6]} 17... Bxg2 {[%clk 0:02:28.7]}
18. Rhg1 {[%clk 0:01:37.4]} 18... Bh3 {[%clk 0:02:29]} 19. Rxg7 {[%clk
0:01:17.9]} 19... Bxf5 {[%clk 0:02:28]} 20. Rf1 {[%clk 0:01:13.6]} 20... Bg6
{[%clk 0:02:04.9]} 21. Nb5 {[%clk 0:01:02]} 21... Rd7 {[%clk 0:02:04.1]} 22.
Nxa7+ {[%clk 0:01:00.8]} 22... Kd8 {[%clk 0:02:04.1]} 23. Rxd7+ {[%clk
0:00:52.7]} 23... Kxd7 {[%clk 0:02:05]} 24. Rd1+ {[%clk 0:00:49.2]} 24... Ke7
{[%clk 0:01:54]} 25. Nb5 {[%clk 0:00:49]} 25... c6 {[%clk 0:01:43.6]} 26. Na3
{[%clk 0:00:37.5]} 26... b5 {[%clk 0:01:38.7]} 27. c3 {[%clk 0:00:27.5]} 27...
Rf8 {[%clk 0:01:28.4]} 28. Nb1 {[%clk 0:00:26.5]} 28... Bh5 {[%clk 0:01:22.5]}
29. Rg1 {[%clk 0:00:22.9]} 29... Rf3+ {[%clk 0:01:20.4]} 30. Ke4 {[%clk
0:00:21.7]} 30... Rf2 {[%clk 0:01:18.5]} 31. Kxe5 {[%clk 0:00:17]} 31... Bg6
{[%clk 0:01:09.2]} 32. Kd4 {[%clk 0:00:02.5]} 32... Rxb2 {[%clk 0:01:04.6]} 0-1

[Event "*** SCC Grand Prix: Titled Tuesday Blitz"]
[Site "Chess.com"]
[Date "2020.07.07"]
[Round "3"]
[White "KaterynaLagno"]
[Black "Vesper2018"]
[Result "1/2-1/2"]
[WhiteElo "2766"]
[BlackElo "2552"]
[TimeControl "180+1"]
[EndTime "10:28:17 PDT"]
[Termination "Game drawn by agreement"]

1. e4 {[%clk 0:03:00.9]} 1... c5 {[%clk 0:03:00]} 2. Nf3 {[%clk 0:03:01.4]} 2...
d6 {[%clk 0:03:00.1]} 3. Bb5+ {[%clk 0:03:01.9]} 3... Bd7 {[%clk 0:02:59.7]} 4.
Bxd7+ {[%clk 0:03:01.6]} 4... Qxd7 {[%clk 0:02:59.7]} 5. c4 {[%clk 0:02:59.6]}
5... Nf6 {[%clk 0:02:58.1]} 6. Nc3 {[%clk 0:02:59.4]} 6... Nc6 {[%clk
0:02:56.1]} 7. d4 {[%clk 0:02:58.7]} 7... cxd4 {[%clk 0:02:56.4]} 8. Nxd4 {[%clk
0:02:58.2]} 8... g6 {[%clk 0:02:56.8]} 9. f3 {[%clk 0:02:56.5]} 9... Bg7 {[%clk
0:02:57]} 10. Be3 {[%clk 0:02:56.3]} 10... O-O {[%clk 0:02:56.1]} 11. Rc1 {[%clk
0:02:55.7]} 11... Rac8 {[%clk 0:02:53.5]} 12. b3 {[%clk 0:02:51.8]} 12... e6
{[%clk 0:02:53.2]} 13. O-O {[%clk 0:02:49.3]} 13... Rfd8 {[%clk 0:02:52.8]} 14.
Bf2 {[%clk 0:02:11.2]} 14... d5 {[%clk 0:02:19.6]} 15. exd5 {[%clk 0:02:09.3]}
15... exd5 {[%clk 0:02:18.4]} 16. cxd5 {[%clk 0:02:02]} 16... Nxd5 {[%clk
0:02:12.3]} 17. Nxd5 {[%clk 0:01:57.2]} 17... Qxd5 {[%clk 0:02:06]} 18. Nxc6
{[%clk 0:01:53.9]} 18... bxc6 {[%clk 0:02:01.4]} 19. Qxd5 {[%clk 0:01:50.5]}
19... Rxd5 {[%clk 0:01:54.5]} 20. Bxa7 {[%clk 0:01:39.3]} 20... Ra5 {[%clk
0:01:43.9]} 21. Be3 {[%clk 0:01:20.2]} 21... Rxa2 {[%clk 0:01:41.4]} 22. Rfd1
{[%clk 0:01:12.2]} 22... Rb2 {[%clk 0:01:25.1]} 23. Rxc6 {[%clk 0:01:00.9]}
23... Re8 {[%clk 0:01:04]} 24. Rd3 {[%clk 0:00:28.9]} 24... h5 {[%clk
0:00:41.9]} 25. Kf1 {[%clk 0:00:26.8]} 25... Rb8 {[%clk 0:00:35.7]} 26. Rc1
{[%clk 0:00:18.2]} 26... R2xb3 {[%clk 0:00:33.2]} 27. Rxb3 {[%clk 0:00:18]}
27... Rxb3 {[%clk 0:00:33.4]} 28. Bf4 {[%clk 0:00:18]} 1/2-1/2

[Event "*** SCC Grand Prix: Titled Tuesday Blitz"]
[Site "Chess.com"]
[Date "2020.07.07"]
[Round "3"]
[White "marabu44"]
[Black "gagtemp"]
[Result "1-0"]
[WhiteElo "2246"]
[BlackElo "1878"]
[TimeControl "180+1"]
[EndTime "10:28:19 PDT"]
[Termination "marabu44 won by resignation"]

1. Nf3 {[%clk 0:03:00.9]} 1... d5 {[%clk 0:02:58.8]} 2. d4 {[%clk 0:03:00.3]}
2... e6 {[%clk 0:02:58.3]} 3. c4 {[%clk 0:02:59.9]} 3... c5 {[%clk 0:02:57.8]}
4. Nc3 {[%clk 0:02:58.9]} 4... Nc6 {[%clk 0:02:57.5]} 5. cxd5 {[%clk 0:02:55.5]}
5... exd5 {[%clk 0:02:58.4]} 6. e3 {[%clk 0:02:51.3]} 6... Nf6 {[%clk 0:02:58]}
7. a3 {[%clk 0:02:49.4]} 7... Be7 {[%clk 0:02:56.8]} 8. dxc5 {[%clk 0:02:49.4]}
8... Bxc5 {[%clk 0:02:56]} 9. b4 {[%clk 0:02:49.3]} 9... Bb6 {[%clk 0:02:50.3]}
10. Bb2 {[%clk 0:02:48.1]} 10... a6 {[%clk 0:02:49.5]} 11. Be2 {[%clk
0:02:41.6]} 11... O-O {[%clk 0:02:48.7]} 12. O-O {[%clk 0:02:41.2]} 12... Bg4
{[%clk 0:02:47.9]} 13. Na4 {[%clk 0:02:40.4]} 13... Ba7 {[%clk 0:02:41.4]} 14.
Bxf6 {[%clk 0:02:34.7]} 14... Qxf6 {[%clk 0:02:39.9]} 15. Qxd5 {[%clk
0:02:33.8]} 15... Rad8 {[%clk 0:02:35.3]} 16. Qb3 {[%clk 0:02:33.5]} 16... Rfe8
{[%clk 0:02:19.5]} 17. Rad1 {[%clk 0:02:30.4]} 17... Rc8 {[%clk 0:02:15.4]} 18.
Rfe1 {[%clk 0:02:17.4]} 18... Bb8 {[%clk 0:02:10.3]} 19. Nd4 {[%clk 0:01:58.1]}
19... Be6 {[%clk 0:01:53.5]} 20. Nxe6 {[%clk 0:01:56.7]} 20... Rxe6 {[%clk
0:01:52.9]} 21. Nc5 {[%clk 0:01:52.6]} 21... Qh6 {[%clk 0:01:42.9]} 22. g3
{[%clk 0:01:49.4]} 22... Rg6 {[%clk 0:01:29]} 23. Rd5 {[%clk 0:01:34.7]} 23...
Rg5 {[%clk 0:01:06.1]} 24. Red1 {[%clk 0:01:26.6]} 24... Re8 {[%clk 0:00:51.1]}
25. Ne4 {[%clk 0:01:09.5]} 25... Rxd5 {[%clk 0:00:46.7]} 26. Qxd5 {[%clk
0:01:07]} 26... Qg6 {[%clk 0:00:37]} 27. Nc5 {[%clk 0:01:01.6]} 27... h6 {[%clk
0:00:31.3]} 28. Qd7 {[%clk 0:00:55.6]} 28... Rd8 {[%clk 0:00:27]} 29. Qxb7
{[%clk 0:00:48.9]} 29... Rxd1+ {[%clk 0:00:25.3]} 30. Bxd1 {[%clk 0:00:48.2]}
30... Qb1 {[%clk 0:00:19.8]} 31. Qxc6 {[%clk 0:00:45.8]} 31... Qxd1+ {[%clk
0:00:19.2]} 32. Kg2 {[%clk 0:00:46.4]} 32... Be5 {[%clk 0:00:16]} 33. Qe8+
{[%clk 0:00:44.8]} 33... Kh7 {[%clk 0:00:15.6]} 34. Qxe5 {[%clk 0:00:45.3]} 1-0

[Event "*** SCC Grand Prix: Titled Tuesday Blitz"]
[Site "Chess.com"]
[Date "2020.07.07"]
[Round "3"]
[White "GukeshDommaraju"]
[Black "plumalka"]
[Result "1-0"]
[WhiteElo "2716"]
[BlackElo "2407"]
[TimeControl "180+1"]
[EndTime "10:28:21 PDT"]
[Termination "GukeshDommaraju won by resignation"]

1. d4 {[%clk 0:03:00.9]} 1... Nf6 {[%clk 0:02:59.8]} 2. c4 {[%clk 0:03:00.1]}
2... c5 {[%clk 0:02:59.9]} 3. d5 {[%clk 0:02:59.2]} 3... b5 {[%clk 0:03:00.2]}
4. cxb5 {[%clk 0:02:59.2]} 4... a6 {[%clk 0:03:00.7]} 5. bxa6 {[%clk 0:02:59]}
5... Bxa6 {[%clk 0:03:01.6]} 6. Nc3 {[%clk 0:02:58.7]} 6... d6 {[%clk
0:03:01.9]} 7. g3 {[%clk 0:02:58.1]} 7... g6 {[%clk 0:03:01.9]} 8. Bg2 {[%clk
0:02:58.3]} 8... Bg7 {[%clk 0:03:02.3]} 9. Nf3 {[%clk 0:02:58.5]} 9... O-O
{[%clk 0:03:02.6]} 10. O-O {[%clk 0:02:58.9]} 10... Nbd7 {[%clk 0:03:02.9]} 11.
Re1 {[%clk 0:02:56.8]} 11... Qa5 {[%clk 0:03:01.5]} 12. Bd2 {[%clk 0:02:50.6]}
12... Ng4 {[%clk 0:02:53.8]} 13. h3 {[%clk 0:02:43.1]} 13... Nge5 {[%clk
0:02:53.5]} 14. Nxe5 {[%clk 0:02:41.1]} 14... Nxe5 {[%clk 0:02:54.4]} 15. b3
{[%clk 0:02:30.9]} 15... Qa3 {[%clk 0:02:44.1]} 16. Nb1 {[%clk 0:02:27.4]} 16...
Qb2 {[%clk 0:02:34.4]} 17. Bc3 {[%clk 0:02:26.4]} 17... Nf3+ {[%clk 0:02:34.2]}
18. exf3 {[%clk 0:02:13.1]} 18... Bxc3 {[%clk 0:02:33.7]} 19. Nxc3 {[%clk
0:02:14]} 19... Qxc3 {[%clk 0:02:33.9]} 20. Rxe7 {[%clk 0:02:14.6]} 20... Qf6
{[%clk 0:02:27.6]} 21. Re3 {[%clk 0:02:12.9]} 21... Rfc8 {[%clk 0:02:21.7]} 22.
f4 {[%clk 0:02:11.8]} 22... Bb5 {[%clk 0:02:20.1]} 23. a4 {[%clk 0:02:11.2]}
23... Bd7 {[%clk 0:02:18.8]} 24. Ra2 {[%clk 0:02:00.2]} 24... Rcb8 {[%clk
0:02:10.3]} 25. Kh2 {[%clk 0:01:54.4]} 25... Rb4 {[%clk 0:02:09.8]} 26. Qe2
{[%clk 0:01:49.5]} 26... h5 {[%clk 0:02:03.8]} 27. h4 {[%clk 0:01:48.7]} 27...
Bg4 {[%clk 0:02:00.4]} 28. Qd2 {[%clk 0:01:44.7]} 28... Rd4 {[%clk 0:01:52.9]}
29. Qc3 {[%clk 0:01:42.7]} 29... Qd8 {[%clk 0:01:45.9]} 30. Ra1 {[%clk
0:01:29.9]} 30... Rb8 {[%clk 0:01:40.1]} 31. Rae1 {[%clk 0:01:27.8]} 31... Kh7
{[%clk 0:01:28.9]} 32. Re7 {[%clk 0:01:26.5]} 32... Qf8 {[%clk 0:01:28.3]} 33.
a5 {[%clk 0:01:20]} 33... Rdb4 {[%clk 0:01:27.9]} 34. Qf6 {[%clk 0:01:19.2]}
34... Kg8 {[%clk 0:01:23.2]} 35. Qxd6 {[%clk 0:01:10.3]} 35... Rxb3 {[%clk
0:01:17.9]} 36. Qxc5 {[%clk 0:01:10.3]} 36... Rc8 {[%clk 0:01:18.2]} 37. Qd4
{[%clk 0:01:05.4]} 37... Ra3 {[%clk 0:01:15.4]} 38. d6 {[%clk 0:01:02.1]} 38...
Rd8 {[%clk 0:01:15.1]} 39. Bd5 {[%clk 0:00:59.5]} 39... Be6 {[%clk 0:00:26.1]}
40. R1xe6 {[%clk 0:00:58.6]} 40... fxe6 {[%clk 0:00:26.3]} 41. Bxe6+ {[%clk
0:00:58.6]} 1-0

[Event "*** SCC Grand Prix: Titled Tuesday Blitz"]
[Site "Chess.com"]
[Date "2020.07.07"]
[Round "3"]
[White "AlanTate"]
[Black "MasterKroket"]
[Result "0-1"]
[WhiteElo "2148"]
[BlackElo "2395"]
[TimeControl "180+1"]
[EndTime "10:28:22 PDT"]
[Termination "MasterKroket won on time"]

1. d4 {[%clk 0:03:00.9]} 1... Nf6 {[%clk 0:02:59.6]} 2. c4 {[%clk 0:02:58.9]}
2... e6 {[%clk 0:03:00.1]} 3. Nf3 {[%clk 0:02:53.9]} 3... b6 {[%clk 0:02:59.2]}
4. g3 {[%clk 0:02:53.6]} 4... Bb7 {[%clk 0:02:59.5]} 5. Bg2 {[%clk 0:02:53.6]}
5... Be7 {[%clk 0:03:00.1]} 6. O-O {[%clk 0:02:53.5]} 6... O-O {[%clk
0:03:00.8]} 7. d5 {[%clk 0:02:53.6]} 7... exd5 {[%clk 0:03:00.8]} 8. Nh4 {[%clk
0:02:53.8]} 8... c6 {[%clk 0:03:00.9]} 9. cxd5 {[%clk 0:02:49.1]} 9... Nxd5
{[%clk 0:03:01.5]} 10. Nf5 {[%clk 0:02:49.2]} 10... Nc7 {[%clk 0:03:01]} 11. e4
{[%clk 0:02:39.5]} 11... d5 {[%clk 0:03:01.1]} 12. Nc3 {[%clk 0:02:28]} 12...
Bf6 {[%clk 0:02:57.6]} 13. exd5 {[%clk 0:01:54.9]} 13... Nxd5 {[%clk 0:02:56.6]}
14. Nxd5 {[%clk 0:01:52.2]} 14... cxd5 {[%clk 0:02:57.5]} 15. Ne3 {[%clk
0:01:46.8]} 15... Na6 {[%clk 0:02:51.9]} 16. Nxd5 {[%clk 0:01:44.6]} 16... Nc5
{[%clk 0:02:38.8]} 17. Rb1 {[%clk 0:00:57.1]} 17... Bxd5 {[%clk 0:02:23.7]} 18.
Bxd5 {[%clk 0:00:52.3]} 18... Rc8 {[%clk 0:02:24.1]} 19. b4 {[%clk 0:00:50.8]}
19... Ne6 {[%clk 0:02:20.8]} 20. Bxe6 {[%clk 0:00:45.4]} 20... fxe6 {[%clk
0:02:20]} 21. Qxd8 {[%clk 0:00:44.1]} 21... Rfxd8 {[%clk 0:02:19.7]} 22. Be3
{[%clk 0:00:31.6]} 22... Rc2 {[%clk 0:02:19]} 23. a4 {[%clk 0:00:31.9]} 23...
Rd3 {[%clk 0:02:11.5]} 24. a5 {[%clk 0:00:25.6]} 24... Bd4 {[%clk 0:02:08.2]}
25. Bxd4 {[%clk 0:00:18]} 25... Rxd4 {[%clk 0:02:09.1]} 26. Rfd1 {[%clk
0:00:09.9]} 26... e5 {[%clk 0:01:59.6]} 27. Rdc1 {[%clk 0:00:03.4]} 27... Rxc1+
{[%clk 0:01:54.4]} 28. Rxc1 {[%clk 0:00:02.5]} 28... Rxb4 {[%clk 0:01:54.9]} 29.
Rc8+ {[%clk 0:00:01.4]} 29... Kf7 {[%clk 0:01:55.6]} 30. Rc7+ {[%clk 0:00:01.7]}
30... Kf6 {[%clk 0:01:56]} 31. Rxa7 {[%clk 0:00:01.5]} 31... Rb1+ {[%clk
0:01:54.3]} 32. Kg2 {[%clk 0:00:01.4]} 32... b5 {[%clk 0:01:55.2]} 33. Rb7
{[%clk 0:00:01.4]} 33... b4 {[%clk 0:01:54.1]} 34. a6 {[%clk 0:00:01.8]} 34...
Ra1 {[%clk 0:01:53.6]} 35. a7 {[%clk 0:00:02.2]} 35... g5 {[%clk 0:01:50]} 36.
h3 {[%clk 0:00:02.1]} 36... h5 {[%clk 0:01:49.7]} 37. Rb6+ {[%clk 0:00:01.8]}
37... Kf5 {[%clk 0:01:49]} 38. Rxb4 {[%clk 0:00:02]} 38... Rxa7 {[%clk
0:01:47.9]} 39. g4+ {[%clk 0:00:02.5]} 39... hxg4 {[%clk 0:01:48.8]} 40. hxg4+
{[%clk 0:00:03.1]} 40... Ke6 {[%clk 0:01:49]} 41. f3 {[%clk 0:00:02.6]} 41...
Rd7 {[%clk 0:01:47.7]} 42. Kg3 {[%clk 0:00:02.6]} 42... Rd6 {[%clk 0:01:46.6]}
43. Ra4 {[%clk 0:00:02.8]} 43... Rb6 {[%clk 0:01:46.6]} 44. Rc4 {[%clk
0:00:02.7]} 44... Kd5 {[%clk 0:01:47.1]} 45. Ra4 {[%clk 0:00:03]} 45... Kc5
{[%clk 0:01:47.6]} 46. Re4 {[%clk 0:00:02.5]} 46... Kd5 {[%clk 0:01:47.9]} 47.
Ra4 {[%clk 0:00:02.7]} 47... Rb1 {[%clk 0:01:46.2]} 48. Ra5+ {[%clk 0:00:02.3]}
48... Kd4 {[%clk 0:01:46.5]} 49. Ra6 {[%clk 0:00:02]} 49... Ke3 {[%clk
0:01:40.2]} 50. Ra3+ {[%clk 0:00:01.6]} 50... Kd2 {[%clk 0:01:39.1]} 51. Ra5
{[%clk 0:00:01.3]} 51... Re1 {[%clk 0:01:37.8]} 0-1

[Event "*** SCC Grand Prix: Titled Tuesday Blitz"]
[Site "Chess.com"]
[Date "2020.07.07"]
[Round "3"]
[White "TigrVShlyape"]
[Black "nocnypako"]
[Result "1-0"]
[WhiteElo "2894"]
[BlackElo "2582"]
[TimeControl "180+1"]
[EndTime "10:28:24 PDT"]
[Termination "TigrVShlyape won by resignation"]

1. d4 {[%clk 0:03:00.9]} 1... Nf6 {[%clk 0:02:59.4]} 2. Nf3 {[%clk 0:03:00.3]}
2... g6 {[%clk 0:02:59]} 3. c3 {[%clk 0:02:51.2]} 3... Bg7 {[%clk 0:02:58.7]} 4.
Bf4 {[%clk 0:02:48.2]} 4... O-O {[%clk 0:02:58.6]} 5. e3 {[%clk 0:02:46.4]} 5...
d5 {[%clk 0:02:59.1]} 6. Be2 {[%clk 0:02:44.2]} 6... c5 {[%clk 0:02:59.5]} 7.
Nbd2 {[%clk 0:02:42.9]} 7... b6 {[%clk 0:02:59]} 8. O-O {[%clk 0:02:41.3]} 8...
Bb7 {[%clk 0:02:59.2]} 9. a4 {[%clk 0:02:40.9]} 9... Nc6 {[%clk 0:02:58.2]} 10.
h3 {[%clk 0:02:40]} 10... Ne4 {[%clk 0:02:56.7]} 11. Qb3 {[%clk 0:02:16.7]}
11... Nxd2 {[%clk 0:02:50.5]} 12. Nxd2 {[%clk 0:02:13]} 12... e5 {[%clk
0:02:50.7]} 13. dxe5 {[%clk 0:02:12.4]} 13... Nxe5 {[%clk 0:02:51.6]} 14. Bxe5
{[%clk 0:02:10.5]} 14... Bxe5 {[%clk 0:02:50.9]} 15. Bf3 {[%clk 0:02:10]} 15...
c4 {[%clk 0:02:40.4]} 16. Qc2 {[%clk 0:02:00.6]} 16... Qc7 {[%clk 0:02:39.5]}
17. Rfd1 {[%clk 0:01:59.8]} 17... Rad8 {[%clk 0:02:37.2]} 18. Be2 {[%clk
0:01:50.3]} 18... f5 {[%clk 0:02:31.4]} 19. Nf3 {[%clk 0:01:49]} 19... f4 {[%clk
0:02:30.8]} 20. Nxe5 {[%clk 0:01:47.3]} 20... Qxe5 {[%clk 0:02:29.2]} 21. exf4
{[%clk 0:01:28]} 21... Rxf4 {[%clk 0:02:30.1]} 22. Bf1 {[%clk 0:01:20.7]} 22...
Kg7 {[%clk 0:02:20]} 23. Re1 {[%clk 0:01:16.5]} 23... Qf6 {[%clk 0:02:13.3]} 24.
Rad1 {[%clk 0:01:13.2]} 24... Rf8 {[%clk 0:01:43.9]} 25. Rd2 {[%clk 0:01:12.6]}
25... Bc6 {[%clk 0:01:14.4]} 26. g3 {[%clk 0:01:08.8]} 26... Rf5 {[%clk
0:01:09.6]} 27. Bg2 {[%clk 0:01:08.4]} 27... Qf7 {[%clk 0:01:01.8]} 28. Rde2
{[%clk 0:01:06.8]} 28... Re8 {[%clk 0:00:53.8]} 29. Rxe8 {[%clk 0:01:04.9]}
29... Bxe8 {[%clk 0:00:54.7]} 30. a5 {[%clk 0:01:04.5]} 30... bxa5 {[%clk
0:00:52.1]} 31. Qd2 {[%clk 0:01:02.9]} 31... Bc6 {[%clk 0:00:24.7]} 32. Qd4+
{[%clk 0:01:01.9]} 32... Rf6 {[%clk 0:00:20]} 33. h4 {[%clk 0:00:59]} 33... Qd7
{[%clk 0:00:17.4]} 34. Bh3 {[%clk 0:00:47.4]} 34... Qc7 {[%clk 0:00:17.6]} 35.
Re6 {[%clk 0:00:45.2]} 1-0

[Event "*** SCC Grand Prix: Titled Tuesday Blitz"]
[Site "Chess.com"]
[Date "2020.07.07"]
[Round "3"]
[White "SergeyKarjakin"]
[Black "Ginger_GM"]
[Result "1-0"]
[WhiteElo "2964"]
[BlackElo "2671"]
[TimeControl "180+1"]
[EndTime "10:28:25 PDT"]
[Termination "SergeyKarjakin won by resignation"]

1. e4 {[%clk 0:03:00.9]} 1... c5 {[%clk 0:02:59.6]} 2. Nf3 {[%clk 0:03:00.1]}
2... d6 {[%clk 0:02:59.2]} 3. d4 {[%clk 0:03:00.7]} 3... cxd4 {[%clk 0:02:59]}
4. Nxd4 {[%clk 0:03:01.6]} 4... Nf6 {[%clk 0:02:59.3]} 5. Nc3 {[%clk 0:03:02.2]}
5... g6 {[%clk 0:02:59.4]} 6. Be3 {[%clk 0:02:59.8]} 6... a6 {[%clk 0:02:59.3]}
7. f3 {[%clk 0:02:57.5]} 7... b5 {[%clk 0:02:59.1]} 8. Qd2 {[%clk 0:02:44.3]}
8... Bb7 {[%clk 0:02:57.4]} 9. a4 {[%clk 0:02:29.4]} 9... e5 {[%clk 0:02:52.9]}
10. Nb3 {[%clk 0:02:25.7]} 10... b4 {[%clk 0:02:52.5]} 11. Na2 {[%clk
0:02:26.2]} 11... d5 {[%clk 0:02:52.3]} 12. exd5 {[%clk 0:02:24.8]} 12... Nxd5
{[%clk 0:02:50.9]} 13. O-O-O {[%clk 0:02:16.3]} 13... Nd7 {[%clk 0:02:34.1]} 14.
Bc4 {[%clk 0:02:14.8]} 14... Nxe3 {[%clk 0:02:29.4]} 15. Qxe3 {[%clk 0:02:15.7]}
15... Qh4 {[%clk 0:02:28.9]} 16. Bxf7+ {[%clk 0:02:02.7]} 16... Kxf7 {[%clk
0:02:28.5]} 17. Rxd7+ {[%clk 0:02:01.8]} 17... Ke8 {[%clk 0:01:57.9]} 18. Qd3
{[%clk 0:01:46.5]} 18... Bc6 {[%clk 0:01:45.9]} 19. Rd1 {[%clk 0:01:42.4]} 19...
Be7 {[%clk 0:01:20.6]} 20. Rc7 {[%clk 0:01:29]} 20... Rd8 {[%clk 0:01:17.6]} 21.
Qe2 {[%clk 0:01:24.1]} 21... Qg5+ {[%clk 0:01:06.2]} 22. Kb1 {[%clk 0:01:19.8]}
22... Bd5 {[%clk 0:00:59.5]} 23. Nac1 {[%clk 0:01:10.3]} 23... Kf7 {[%clk
0:00:44.3]} 24. Nd3 {[%clk 0:00:56.5]} 24... Bxb3 {[%clk 0:00:41.3]} 25. cxb3
{[%clk 0:00:55.5]} 25... Kg7 {[%clk 0:00:34.6]} 26. Ka2 {[%clk 0:00:55.1]} 26...
Rhe8 {[%clk 0:00:31.7]} 27. Nc5 {[%clk 0:00:43.6]} 27... Qf6 {[%clk 0:00:24.5]}
28. Rxd8 {[%clk 0:00:40.1]} 28... Rxd8 {[%clk 0:00:25.4]} 29. Qc4 {[%clk
0:00:38.1]} 29... Kh8 {[%clk 0:00:25]} 30. Ne4 {[%clk 0:00:36.4]} 30... Qf8
{[%clk 0:00:22.4]} 31. Qxa6 {[%clk 0:00:35.4]} 31... Bf6 {[%clk 0:00:18.3]} 32.
Qxf6+ {[%clk 0:00:34.1]} 1-0